bitfinex-derivatives/quotes_BTCF0:USTF0_20210705
["timestamp","ask_amount","ask_price","bid_price","bid_amount"]
[1625445994673,1.46230176,34827.0,34820.0,1.18272642]
[1625445994772,0.96230176,34827.0,34820.0,1.18272642]
[1625445994972,1.02130176,34827.0,34820.0,1.24172642]
[1625445995071,1.02130176,34827.0,34820.0,1.18272642]
[1625445995228,1.08030176,34827.0,34820.0,1.18272642]
[1625445995423,1.08030176,34827.0,34798.0,0.04433124]
[1625445995523,1.08030176,34827.0,34804.0,0.29957544]
[1625445995624,1.08030176,34827.0,34804.0,0.35857544]
[1625445995822,1.08030176,34827.0,34805.0,0.00521178]
[1625445995922,1.08030176,34827.0,34805.0,0.06421178]
[1625445996022,1.02130176,34827.0,34805.0,0.12321178]
[1625445996122,1.08030176,34827.0,34805.0,0.12321178]
[1625445996223,1.02130176,34827.0,34805.0,0.12321178]
[1625445996422,0.24057544,34808.0,34806.0,0.00521172]
[1625445996524,0.49736544,34808.0,34806.0,0.00521172]
[1625445996623,0.49736544,34808.0,34806.0,0.118]
[1625445997073,5.0384,34807.0,34806.0,0.118]
[1625445997673,5.1235,34807.0,34806.0,0.118]
[1625445997777,5.0384,34807.0,34806.0,0.118]
[1625445998476,5.27897544,34807.0,34806.0,0.118]
[1625445998926,5.27897544,34807.0,34798.0,0.04433124]
[1625445999087,5.39697544,34807.0,34798.0,0.04433124]
[1625445999581,0.35857544,34807.0,34798.0,0.04433124]
[1625445999683,0.35857544,34807.0,34798.0,0.10333124]
[1625445999787,0.29957544,34807.0,34798.0,0.10333124]
[1625445999985,0.41757544,34807.0,34798.0,0.10333124]
[1625446000086,4.845,34801.0,34798.0,0.10333124]
[1625446000187,4.845,34801.0,34798.0,0.04433124]
[1625446000488,0.48115088,34799.0,34798.0,0.04433124]
[1625446001388,0.54015088,34799.0,34798.0,0.04433124]
[1625446001788,0.59915088,34799.0,34798.0,0.04433124]
[1625446002550,0.54015088,34799.0,34798.0,0.04433124]
[1625446002642,0.59915088,34799.0,34798.0,0.04433124]
[1625446003094,0.54015088,34799.0,34798.0,0.04433124]
[1625446003193,0.48115088,34799.0,34798.0,0.04433124]
[1625446003393,0.54015088,34799.0,34798.0,0.04433124]
[1625446003497,0.48115088,34799.0,34798.0,0.04433124]
[1625446003593,0.62685088,34799.0,34798.0,0.04433124]
[1625446003694,0.68585088,34799.0,34798.0,0.04433124]
[1625446003793,0.54015088,34799.0,34798.0,0.04433124]
[1625446004166,0.48115088,34799.0,34798.0,0.04433124]
[1625446004396,0.48115088,34799.0,34798.0,0.10333124]
[1625446004695,0.48115088,34799.0,34798.0,0.04433124]
[1625446004996,0.48115088,34799.0,34798.0,0.10333124]
[1625446005502,0.24057544,34807.0,34798.0,0.10333124]
[1625446005598,0.29957544,34807.0,34798.0,0.41463124]
[1625446006200,0.24057544,34807.0,34798.0,0.41463124]
[1625446006453,0.24057544,34807.0,34806.0,0.24057544]
[1625446006556,0.24057544,34807.0,34806.0,0.47747544]
[1625446007907,0.24057544,34807.0,34806.0,0.53647544]
[1625446008010,0.24057544,34807.0,34806.0,0.47747544]
[1625446010063,0.24057544,34807.0,34806.0,0.24057544]
[1625446011211,0.24057544,34807.0,34806.0,0.45068544]
[1625446011512,0.24057544,34807.0,34806.0,0.50968544]
[1625446011912,0.24057544,34807.0,34806.0,0.56868544]
[1625446012313,7.544e-05,34807.0,34806.0,0.56868544]
[1625446012514,0.008,34808.0,34806.0,0.80926088]
[1625446014721,0.24057544,34817.0,34806.0,0.80926088]
[1625446015119,0.29957544,34817.0,34806.0,0.75026088]
[1625446015422,0.29957544,34817.0,34806.0,0.80926088]
[1625446015531,0.29957544,34817.0,34806.0,0.75026088]
[1625446015626,0.29957544,34817.0,34806.0,0.48115088]
[1625446015723,0.35857544,34817.0,34806.0,0.48115088]
[1625446016523,0.35857544,34817.0,34813.0,0.24057544]
[1625446018577,0.35857544,34817.0,34816.0,0.24057544]
[1625446019330,0.29957544,34817.0,34816.0,0.24057544]
[1625446019428,0.35857544,34817.0,34816.0,0.24057544]
[1625446021432,0.29957544,34817.0,34816.0,0.24057544]
[1625446021531,0.35857544,34817.0,34816.0,0.24057544]
[1625446022083,0.29957544,34817.0,34816.0,0.29957544]
[1625446022289,0.24057544,34822.0,34816.0,0.29957544]
[1625446022390,0.29957544,34822.0,34816.0,0.29957544]
[1625446022591,0.29957544,34822.0,34821.0,0.24057544]
[1625446022688,0.29957544,34822.0,34821.0,0.48789544]
[1625446024897,0.24057544,34822.0,34821.0,0.48789544]
[1625446024994,0.24057544,34822.0,34821.0,0.54689544]
[1625446025225,0.24057544,34822.0,34821.0,0.60589544]
[1625446025299,0.24057544,34825.0,34821.0,0.60589544]
[1625446026597,0.24057544,34825.0,34824.0,0.24057544]
[1625446028802,0.24057544,34835.0,34824.0,0.29957544]
[1625446029403,0.24057544,34835.0,34824.0,0.35857544]
[1625446030707,0.24057544,34838.0,34833.0,0.48115088]
[1625446030810,0.24057544,34838.0,34833.0,0.71923088]
[1625446032659,0.32787544,34834.0,34833.0,0.71923088]
[1625446032908,0.24057544,34834.0,34833.0,0.71923088]
[1625446034561,0.24057544,34834.0,34833.0,0.77823088]
[1625446034824,0.24057544,34834.0,34833.0,0.71923088]
[1625446034912,0.24057544,34838.0,34833.0,0.71923088]
[1625446035012,0.059,34838.0,34833.0,0.77823088]
[1625446035113,0.08076534,34840.0,34833.0,0.83723088]
[1625446035211,0.08076534,34840.0,34833.0,0.71923088]
[1625446035414,0.08083071,34842.0,34833.0,0.77823088]
[1625446035815,0.56341426,34843.0,34833.0,0.77823088]
[1625446035816,0.32144712,34843.0,34833.0,0.77823088]
[1625446035917,0.32144712,34843.0,34833.0,0.83723088]
[1625446036016,0.38044712,34843.0,34833.0,0.83723088]
[1625446036717,0.38044712,34843.0,34842.0,0.48115088]
[1625446036817,0.38044712,34843.0,34842.0,0.68238088]
[1625446037821,0.32144712,34843.0,34842.0,0.68238088]
[1625446038221,0.24057544,34843.0,34842.0,0.68238088]
[1625446039122,0.09827752,34850.0,34842.0,0.68238088]
[1625446039244,0.15727752,34850.0,34842.0,0.80038088]
[1625446039442,0.09827752,34850.0,34842.0,0.80038088]
[1625446039533,0.96936172,34849.0,34842.0,0.80038088]
[1625446039636,0.96936172,34849.0,34842.0,0.83188088]
[1625446039725,0.96936172,34849.0,34842.0,0.83688088]
[1625446040174,1.29636063,34863.0,34842.0,0.83688088]
[1625446040373,0.059,34862.0,34842.0,0.83188088]
[1625446040578,0.118,34862.0,34842.0,0.83188088]
[1625446040776,0.118,34862.0,34861.0,0.72172632]
[1625446040874,0.118,34862.0,34861.0,1.01204632]
[1625446041174,1.41235826,34862.0,34861.0,0.67187492]
[1625446042276,0.118,34862.0,34861.0,0.67187492]
[1625446042777,0.35857544,34862.0,34861.0,0.67187492]
[1625446042879,1.53428196,34862.0,34861.0,0.67187492]
[1625446043006,1.29370652,34862.0,34861.0,0.67187492]
[1625446043280,1.35270652,34862.0,34861.0,0.67187492]
[1625446043583,0.059,34862.0,34861.0,0.67187492]
[1625446044182,0.118,34862.0,34861.0,0.67187492]
[1625446044283,0.059,34862.0,34861.0,0.67187492]
[1625446045285,0.118,34862.0,34861.0,0.67187492]
[1625446045839,0.059,34862.0,34861.0,0.67187492]
[1625446047345,0.24057544,34865.0,34861.0,0.67187492]
[1625446047446,0.24057544,34865.0,34861.0,0.73087492]
[1625446047650,0.24057544,34869.0,34861.0,0.73087492]
[1625446048048,1.53785907,34875.0,34861.0,0.78987492]
[1625446048147,1.59685907,34875.0,34861.0,0.78987492]
[1625446048248,0.29957544,34875.0,34861.0,0.76237492]
[1625446048697,0.29957544,34875.0,34861.0,0.82137492]
[1625446048800,0.29957544,34875.0,34874.0,0.37913758]
[1625446048900,0.24057544,34875.0,34874.0,0.70470758]
[1625446050151,0.29957544,34875.0,34874.0,0.70470758]
[1625446051001,0.24057544,34875.0,34874.0,0.70470758]
[1625446052052,4.50497544,34875.0,34874.0,0.70470758]
[1625446052655,4.44597544,34875.0,34874.0,0.70470758]
[1625446052957,0.24057544,34875.0,34874.0,0.70470758]
[1625446053407,0.29957544,34875.0,34874.0,0.70470758]
[1625446054459,0.24057544,34875.0,34874.0,0.70470758]
[1625446055213,0.29957544,34875.0,34874.0,0.70470758]
[1625446055314,0.29957544,34875.0,34874.0,0.37913758]
[1625446055916,0.94599392,34875.0,34874.0,0.24057544]
[1625446056015,0.94599392,34875.0,34867.0,0.24057544]
[1625446056118,0.94599392,34875.0,34867.0,0.29957544]
[1625446056768,0.94599392,34875.0,34867.0,0.24057544]
[1625446056869,0.24057544,34868.0,34867.0,0.24057544]
[1625446057069,0.29957544,34868.0,34867.0,0.24057544]
[1625446058069,0.29957544,34868.0,34867.0,0.29957544]
[1625446059424,0.24057544,34868.0,34867.0,0.29957544]
[1625446060879,0.29957544,34868.0,34867.0,0.29957544]
[1625446062886,0.29957544,34868.0,34867.0,0.24057544]
[1625446062986,0.29957544,34868.0,34864.0,0.01]
[1625446063095,0.29957544,34868.0,34864.0,0.069]
[1625446063592,0.29957544,34868.0,34864.0,0.01]
[1625446064196,0.35857544,34868.0,34864.0,0.01]
[1625446064942,0.48115088,34865.0,34864.0,0.01]
[1625446065048,0.82851088,34865.0,34864.0,0.01]
[1625446065147,0.82851088,34865.0,34861.0,0.14097948]
[1625446065246,0.82851088,34865.0,34855.0,0.24057544]
[1625446065346,4.1775,34857.0,34853.0,1.8902]
[1625446065446,4.52515,34857.0,34853.0,0.9711]
[1625446065798,4.52515,34857.0,34851.0,0.24057544]
[1625446066099,4.52515,34857.0,34851.0,0.29957544]
[1625446066198,4.52515,34857.0,34851.0,0.24057544]
[1625446066747,4.52515,34857.0,34851.0,0.29957544]
[1625446066899,0.48115088,34852.0,34851.0,0.29957544]
[1625446067099,0.54015088,34852.0,34851.0,0.24057544]
[1625446068303,0.53015088,34852.0,34851.0,0.24057544]
[1625446069456,0.47115088,34852.0,34851.0,0.24057544]
[1625446074518,0.53015088,34852.0,34851.0,0.24057544]
[1625446075168,0.53015088,34852.0,34840.0,0.24057544]
[1625446075268,0.58915088,34852.0,34840.0,0.29957544]
[1625446075823,0.64512083,34849.0,34840.0,0.29957544]
[1625446075920,0.86480083,34849.0,34840.0,0.29957544]
[1625446076023,0.92380083,34849.0,34840.0,0.29957544]
[1625446076121,0.86480083,34849.0,34840.0,0.29957544]
[1625446076220,0.92380083,34849.0,34840.0,0.24057544]
[1625446076472,0.98280083,34849.0,34840.0,0.24057544]
[1625446076623,0.6449013,34848.0,34840.0,0.24057544]
[1625446076724,0.7629013,34848.0,34840.0,0.24057544]
[1625446076925,0.48115088,34841.0,34840.0,0.24057544]
[1625446077025,0.54015088,34841.0,34840.0,0.24057544]
[1625446077426,0.48115088,34841.0,34840.0,0.24057544]
[1625446077525,0.48115088,34841.0,34840.0,0.29957544]
[1625446077625,0.48115088,34841.0,34840.0,0.35857544]
[1625446077825,0.48115088,34841.0,34840.0,0.29957544]
[1625446084290,0.48115088,34841.0,34840.0,0.35857544]
[1625446085641,0.48115088,34841.0,34840.0,0.29957544]
[1625446087498,0.48115088,34841.0,34840.0,0.49960544]
[1625446089054,0.96773927,34841.0,34840.0,0.49960544]
[1625446089604,0.48115088,34841.0,34840.0,0.44060544]
[1625446090158,0.96773685,34841.0,34840.0,0.44060544]
[1625446090255,0.96773685,34841.0,34840.0,0.24057544]
[1625446091005,1.61654691,34841.0,34840.0,0.24057544]
[1625446091857,1.61654691,34841.0,34840.0,0.51228544]
[1625446093861,1.61654691,34841.0,34840.0,0.24057544]
[1625446095416,2.58930453,34841.0,34840.0,0.24057544]
[1625446097219,3.72365477,34841.0,34840.0,0.24057544]
[1625446101329,3.78265477,34841.0,34840.0,0.24057544]
[1625446105487,2.64830453,34841.0,34840.0,0.24057544]
[1625446105788,2.64830453,34841.0,34840.0,0.24577693]
[1625446107043,6.82660453,34841.0,34840.0,0.24577693]
[1625446107393,5.85384691,34841.0,34840.0,0.24577693]
[1625446107897,4.71845088,34841.0,34840.0,0.24577693]
[1625446108749,6.82363674,34841.0,34840.0,0.24577693]
[1625446108949,6.83626255,34841.0,34840.0,0.24577693]
[1625446109700,2.65796255,34841.0,34840.0,0.24577693]
[1625446110549,2.65796255,34841.0,34840.0,0.00520149]
[1625446110750,2.71696255,34841.0,34840.0,0.00520149]
[1625446110851,2.71696255,34841.0,34836.0,0.00520228]
[1625446111051,2.71696255,34841.0,34832.0,0.24057544]
[1625446111152,0.72755088,34833.0,34832.0,0.24057544]
[1625446111254,0.84555088,34833.0,34832.0,0.24057544]
[1625446111602,0.85817867,34833.0,34832.0,0.24057544]
[1625446111704,0.85817867,34833.0,34832.0,0.24577824]
[1625446111802,0.79917867,34833.0,34832.0,0.24577824]
[1625446112003,2.90065875,34833.0,34832.0,0.24577824]
[1625446112403,2.88803096,34833.0,34832.0,0.24577824]
[1625446112655,2.90065876,34833.0,34832.0,0.24577824]
[1625446113257,4.02025781,34833.0,34832.0,0.24577824]
[1625446113810,2.90065881,34833.0,34832.0,0.24577824]
[1625446114008,2.90065881,34833.0,34828.0,0.24057544]
[1625446114207,2.95965881,34833.0,34828.0,0.24057544]
[1625446114308,2.94703096,34833.0,34829.0,0.00520255]
[1625446114510,4.07830561,34833.0,34829.0,0.00520255]
[1625446114860,4.07830561,34833.0,34828.0,0.24057544]
[1625446115161,0.24057544,34829.0,34828.0,0.24057544]
[1625446115462,0.24057544,34829.0,34828.0,0.2457782]
[1625446115762,0.29957544,34829.0,34828.0,0.2457782]
[1625446115861,0.29957544,34829.0,34820.0,0.24057544]
[1625446115862,1.48991095,34829.0,34820.0,0.24057544]
[1625446116212,1.48991095,34829.0,34821.0,0.00520329]
[1625446116315,1.43091095,34829.0,34821.0,0.00520329]
[1625446116410,1.48991095,34829.0,34821.0,0.00520329]
[1625446116611,0.48454066,34825.0,34821.0,0.00520329]
[1625446116710,0.70844066,34825.0,34821.0,0.00520329]
[1625446116809,4.3935,34822.0,34821.0,0.00520329]
[1625446117161,4.87465088,34822.0,34821.0,0.00520329]
[1625446119663,0.48115088,34822.0,34821.0,0.00520329]
[1625446120067,0.48115088,34822.0,34821.0,0.06420329]
[1625446120166,0.48115088,34822.0,34821.0,0.12320329]
[1625446120418,0.48115088,34822.0,34821.0,0.00520329]
[1625446121174,4.97785088,34822.0,34821.0,0.00520329]
[1625446122321,4.97785088,34822.0,34821.0,0.06420329]
[1625446122420,4.97785088,34822.0,34820.0,0.24057544]
[1625446122519,4.97785088,34822.0,34820.0,0.29957544]
[1625446122720,4.97785088,34822.0,34821.0,0.00519634]
[1625446122820,4.97785088,34822.0,34821.0,0.06419634]
[1625446123571,4.97785088,34822.0,34821.0,0.00519634]
[1625446123975,5.03685088,34822.0,34821.0,0.00519634]
[1625446124073,5.03685088,34822.0,34816.0,2.08923842]
[1625446124171,5.03685088,34822.0,34816.0,1.18293842]
[1625446124575,0.48401289,34818.0,34815.0,0.24057544]
[1625446124774,0.48401289,34818.0,34815.0,0.29957544]
[1625446125227,0.24057544,34816.0,34815.0,0.29957544]
[1625446125677,0.24057544,34816.0,34815.0,0.30477136]
[1625446126376,0.24057544,34816.0,34815.0,0.29957544]
[1625446126478,0.24057544,34816.0,34815.0,0.30477113]
[1625446128829,0.24057544,34816.0,34815.0,0.29957544]
[1625446129281,0.32687544,34816.0,34815.0,0.29957544]
[1625446129631,0.32687544,34816.0,34815.0,0.35857544]
[1625446129742,0.32687544,34816.0,34815.0,0.059]
[1625446130432,0.24057544,34816.0,34815.0,0.059]
[1625446130535,0.78285438,34816.0,34815.0,0.059]
[1625446131187,1.42669374,34816.0,34815.0,0.059]
[1625446131487,1.51269374,34816.0,34815.0,0.059]
[1625446131790,2.47809988,34816.0,34815.0,0.059]
[1625446131991,2.39209988,34816.0,34815.0,0.059]
[1625446132742,1.42669374,34816.0,34815.0,0.059]
[1625446133041,1.51219374,34816.0,34815.0,0.059]
[1625446133241,2.47698036,34816.0,34815.0,0.059]
[1625446133441,2.53598036,34816.0,34815.0,0.059]
[1625446133541,2.47698036,34816.0,34815.0,0.059]
[1625446133842,2.47698036,34816.0,34809.0,0.25113]
[1625446133942,2.53598036,34816.0,34809.0,0.25113]
[1625446134043,2.53598036,34816.0,34804.0,1.18198054]
[1625446134245,0.48187941,34810.0,34802.0,0.24057544]
[1625446134345,0.59987941,34810.0,34802.0,0.24057544]
[1625446134594,0.118,34810.0,34802.0,0.24057544]
[1625446135051,0.59955063,34810.0,34802.0,0.24057544]
[1625446135244,4.09565088,34803.0,34802.0,0.24057544]
[1625446135344,4.15465088,34803.0,34802.0,0.24057544]
[1625446137246,4.15465088,34803.0,34798.0,1.22520874]
[1625446137348,4.15465088,34803.0,34798.0,0.04433124]
[1625446139300,0.24057544,34799.0,34798.0,0.04433124]
[1625446139702,0.24057544,34799.0,34798.0,0.10333124]
[1625446140454,0.24057544,34799.0,34798.0,0.04433124]
[1625446141906,0.24057544,34799.0,34798.0,0.10333124]
[1625446142909,0.24057544,34799.0,34798.0,0.10853035]
[1625446144015,0.24057544,34799.0,34798.0,0.10333124]
[1625446144216,0.24057544,34799.0,34798.0,0.10853045]
[1625446146572,0.24057544,34799.0,34798.0,0.37454045]
[1625446146977,0.24057544,34799.0,34798.0,0.54298614]
[1625446147521,0.24057544,34799.0,34798.0,0.53778693]
[1625446147723,0.24057544,34799.0,34798.0,0.36934124]
[1625446148023,0.24057544,34799.0,34798.0,0.3745395]
[1625446148123,0.24057544,34799.0,34798.0,0.1085295]
[1625446148323,0.24057544,34799.0,34798.0,0.10333124]
[1625446148573,0.24057544,34799.0,34798.0,0.10852956]
[1625446148825,0.24057544,34799.0,34798.0,0.10333124]
[1625446149627,0.24057544,34799.0,34798.0,0.10852949]
[1625446149727,0.24057544,34799.0,34798.0,0.30603949]
[1625446150131,0.24057544,34799.0,34798.0,0.30084124]
[1625446150480,0.24057544,34799.0,34798.0,0.30603965]
[1625446152682,5.02567544,34799.0,34798.0,0.24703965]
[1625446152982,0.24057544,34799.0,34798.0,0.24703965]
[1625446154685,0.24057544,34799.0,34798.0,0.30603965]
[1625446155135,0.24057544,34799.0,34798.0,0.24703965]
[1625446155485,0.24057544,34799.0,34798.0,0.30603965]
[1625446156187,0.24057544,34799.0,34798.0,0.24703965]
[1625446157042,0.24057544,34799.0,34798.0,0.30603965]
[1625446157140,0.24057544,34799.0,34798.0,0.24703965]
[1625446157241,0.29957544,34799.0,34798.0,0.24703965]
[1625446157641,0.24057544,34799.0,34798.0,0.24703965]
[1625446158042,0.29957544,34799.0,34798.0,0.24703965]
[1625446158141,0.24057544,34799.0,34798.0,0.24703965]
[1625446158791,0.29957544,34799.0,34798.0,0.24703965]
[1625446159942,0.24057544,34799.0,34798.0,0.24703965]
[1625446160251,0.29957544,34799.0,34798.0,0.24703965]
[1625446161146,0.24057544,34799.0,34798.0,0.24703965]
[1625446161346,0.29957544,34799.0,34798.0,0.24703965]
[1625446161547,0.24057544,34799.0,34798.0,0.24703965]
[1625446162248,0.29957544,34799.0,34798.0,0.24703965]
[1625446162549,0.24057544,34799.0,34798.0,0.24703965]
[1625446162649,0.29957544,34799.0,34798.0,0.24703965]
[1625446163048,0.24057544,34799.0,34798.0,0.24703965]
[1625446163149,0.29957544,34799.0,34798.0,0.24703965]
[1625446163249,0.29957544,34799.0,34798.0,0.04952965]
[1625446163353,0.35857544,34799.0,34798.0,0.04952965]
[1625446163450,0.54015088,34799.0,34798.0,0.04952965]
[1625446164752,0.59915088,34799.0,34798.0,0.04952965]
[1625446168913,0.68475088,34799.0,34798.0,0.04952965]
[1625446169766,0.62575088,34799.0,34798.0,0.04952965]
[1625446170065,0.68475088,34799.0,34798.0,0.04952965]
[1625446170164,0.84493493,34799.0,34798.0,0.04952965]
[1625446171521,1.16500156,34799.0,34798.0,0.04952965]
[1625446172273,1.07940156,34799.0,34798.0,0.04952965]
[1625446172974,1.07957632,34799.0,34798.0,0.04952965]
[1625446173325,1.16607632,34799.0,34798.0,0.04952965]
[1625446173476,1.07957632,34799.0,34798.0,0.04952965]
[1625446173979,1.72007026,34799.0,34798.0,0.04952965]
[1625446174181,1.72007026,34799.0,34798.0,0.31403965]
[1625446174381,1.07956777,34799.0,34798.0,0.31403965]
[1625446175280,1.16616777,34799.0,34798.0,0.31403965]
[1625446175386,1.80664038,34799.0,34798.0,0.31403965]
[1625446175481,1.80664038,34799.0,34798.0,0.30884124]
[1625446175731,1.80664038,34799.0,34798.0,0.25114124]
[1625446175982,2.76745816,34799.0,34798.0,0.25114124]
[1625446176833,2.76745816,34799.0,34798.0,0.25633984]
[1625446177133,2.76745816,34799.0,34798.0,0.25114124]
[1625446177339,2.76745816,34799.0,34790.0,0.50700406]
[1625446177435,0.5,34798.0,34790.0,0.32000406]
[1625446177539,0.72172632,34791.0,34790.0,0.28760406]
[1625446177637,1.93233741,34791.0,34789.0,0.94792015]
[1625446177738,2.31131144,34791.0,34785.0,0.33828625]
[1625446177836,0.059,34790.0,34782.0,0.16539002]
[1625446177935,0.07166141,34790.0,34781.0,0.8556919]
[1625446178035,0.07166141,34790.0,34781.0,0.5499919]
[1625446178138,0.07166141,34790.0,16061.0,1.331174]
[1625446178237,0.01266348,34789.0,34779.0,0.94134501]
[1625446178335,0.57166348,34789.0,34779.0,0.82684501]
[1625446178435,0.66475168,34789.0,34779.0,0.59484501]
[1625446178537,0.66475168,34789.0,34779.0,0.00264501]
[1625446178638,0.28943499,34779.0,34775.0,1.29208813]
[1625446178736,0.5,34778.0,34775.0,1.28078813]
[1625446178838,0.5,34778.0,34775.0,0.87908813]
[1625446178936,0.559,34778.0,34775.0,0.06198813]
[1625446179038,0.059,34775.0,34770.0,1.42261939]
[1625446179159,0.059,34775.0,34771.0,0.05498506]
[1625446179250,0.118,34775.0,34771.0,0.00208506]
[1625446179350,0.059,34775.0,34770.0,0.37174025]
[1625446179448,0.32988,34775.0,34770.0,0.37174025]
[1625446179541,0.96230176,34771.0,34770.0,0.37174025]
[1625446179658,1.02130176,34771.0,34770.0,0.37174025]
[1625446179746,1.02130176,34771.0,34770.0,0.33334025]
[1625446179862,1.02130176,34771.0,34770.0,0.28134025]
[1625446180146,0.96230176,34771.0,34770.0,0.28134025]
[1625446180240,1.02130176,34771.0,34770.0,0.28134025]
[1625446180542,1.02130176,34771.0,34752.0,2.15947544]
[1625446180543,2.44296684,34771.0,34752.0,2.15947544]
[1625446180640,2.44296684,34771.0,34752.0,2.27747544]
[1625446180740,2.44296684,34771.0,34752.0,2.21847544]
[1625446180943,2.44296684,34771.0,34753.0,0.00520302]
[1625446181040,2.44296684,34771.0,34753.0,0.12320302]
[1625446181143,2.44296684,34771.0,34753.0,0.06420302]
[1625446181242,2.44296684,34771.0,34753.0,0.059]
[1625446181243,1.02130176,34771.0,34753.0,0.059]
[1625446181442,1.02130176,34771.0,34753.0,0.118]
[1625446181543,0.24057544,34754.0,34753.0,0.059]
[1625446181643,0.24057544,34754.0,34752.0,1.16297544]
[1625446181743,0.18157544,34754.0,34753.0,0.059]
[1625446181843,0.12257544,34754.0,34753.0,0.059]
[1625446183245,0.12257544,34754.0,34753.0,0.118]
[1625446184046,0.12257544,34754.0,34753.0,0.059]
[1625446184146,0.12257544,34754.0,34753.0,0.118]
[1625446187301,0.06357544,34754.0,34753.0,0.3833]
[1625446187504,0.24057544,34756.0,34754.0,0.059]
[1625446187601,0.18157544,34756.0,34755.0,0.24057544]
[1625446187701,0.24057544,34760.0,34755.0,0.35857544]
[1625446188552,0.008,34762.0,34755.0,0.35857544]
[1625446189354,0.008,34762.0,34755.0,0.29957544]
[1625446189455,0.24057544,34769.0,34762.0,0.051]
[1625446189556,0.24057544,34765.0,34763.0,0.48115088]
[1625446189656,0.24057544,34765.0,34763.0,0.54015088]
[1625446189755,0.24057544,34765.0,34763.0,0.59915088]
[1625446190657,0.24057544,34769.0,34763.0,0.59915088]
[1625446190758,0.24057544,34769.0,34765.0,0.049]
[1625446190858,0.24057544,34776.0,34765.0,0.049]
[1625446190958,0.24057544,34776.0,34765.0,0.108]
[1625446191610,0.24057544,34776.0,34775.0,0.24057544]
[1625446191712,4.50237544,34776.0,34775.0,0.44276544]
[1625446192011,4.50237544,34776.0,34775.0,0.50176544]
[1625446192108,4.50237544,34776.0,34775.0,0.44276544]
[1625446192308,4.50237544,34776.0,34775.0,0.50176544]
[1625446192910,0.24057544,34776.0,34775.0,0.50176544]
[1625446193563,0.24057544,34776.0,34775.0,0.26119]
[1625446195168,0.24057544,34776.0,34775.0,0.20219]
[1625446195468,0.24057544,34776.0,34775.0,0.26119]
[1625446197622,0.24057544,34776.0,34775.0,0.50176544]
[1625446202335,0.24057544,34784.0,34775.0,0.50176544]
[1625446202435,0.29957544,34784.0,34775.0,0.50176544]
[1625446203588,0.29957544,34784.0,34783.0,0.48115088]
[1625446203689,0.29957544,34784.0,34783.0,0.77364088]
[1625446203789,0.29957544,34784.0,34783.0,0.83264088]
[1625446204087,0.059,34784.0,34783.0,0.83264088]
[1625446205694,0.059,34784.0,34783.0,1.07321632]
[1625446210850,0.24057544,34788.0,34783.0,1.07321632]
[1625446210948,0.29957544,34788.0,34783.0,1.07321632]
[1625446211651,0.29957544,34788.0,34787.0,0.24057544]
[1625446211851,0.29957544,34788.0,34787.0,0.29957544]
[1625446212054,0.29957544,34788.0,34787.0,0.24057544]
[1625446212252,0.29957544,34788.0,34783.0,0.24057544]
[1625446212352,0.0868,34787.0,34783.0,0.24057544]
[1625446212454,0.55888544,34788.0,34783.0,0.24057544]
[1625446212552,0.059,34787.0,34783.0,0.29957544]
[1625446212653,0.24057544,34788.0,34783.0,0.29957544]
[1625446212752,0.29957544,34788.0,34783.0,0.56261544]
[1625446213153,0.24057544,34788.0,34783.0,0.56261544]
[1625446213706,0.24057544,34788.0,34787.0,0.24057544]
[1625446213804,0.24057544,34788.0,34787.0,0.29957544]
[1625446213954,0.24057544,34788.0,34787.0,0.35857544]
[1625446214405,0.24057544,34795.0,34787.0,0.35857544]
[1625446214507,0.29957544,34795.0,34787.0,0.35857544]
[1625446214606,0.059,34795.0,34787.0,0.35857544]
[1625446215711,0.059,34795.0,34794.0,0.48115088]
[1625446215827,0.1455,34795.0,34794.0,0.48115088]
[1625446215912,0.1455,34795.0,34794.0,0.24057544]
[1625446215913,0.118,34795.0,34794.0,0.24057544]
[1625446217359,0.13069534,34795.0,34794.0,0.24057544]
[1625446217660,0.13069534,34795.0,34787.0,0.24057544]
[1625446217761,0.61184622,34795.0,34787.0,0.48115088]
[1625446218161,0.81127088,34795.0,34787.0,0.48115088]
[1625446218863,0.01269542,34794.0,34787.0,0.48115088]
[1625446218963,0.07169542,34794.0,34787.0,0.48115088]
[1625446219264,0.13069542,34794.0,34787.0,0.48115088]
[1625446219464,0.01269574,34793.0,34787.0,0.48115088]
[1625446219564,0.13069574,34793.0,34787.0,0.48115088]
[1625446219665,0.48115088,34788.0,34787.0,0.48115088]
[1625446222423,0.54015088,34788.0,34787.0,0.48115088]
[1625446223375,0.48115088,34788.0,34787.0,0.48115088]
[1625446226882,0.48115088,34788.0,34787.0,0.48633994]
[1625446227435,0.49384049,34788.0,34787.0,0.48633994]
[1625446227935,0.49384049,34788.0,34787.0,0.48115088]
[1625446228988,0.55284049,34788.0,34787.0,0.48115088]
[1625446231644,0.55284049,34788.0,34787.0,0.48634017]
[1625446233249,0.55284049,34788.0,34787.0,0.48115088]
[1625446233855,3.88888456,34788.0,34787.0,0.48115088]
[1625446235058,5.32180635,34788.0,34787.0,0.48115088]
[1625446238013,5.95995454,34788.0,34787.0,0.48115088]
[1625446239615,5.6603791,34788.0,34787.0,0.54015088]
[1625446239716,5.64768949,34788.0,34787.0,0.5453597]
[1625446240116,5.64768949,34788.0,34787.0,0.4863597]
[1625446241118,5.64768949,34788.0,34787.0,0.5453597]
[1625446241727,4.2147677,34788.0,34787.0,0.5453597]
[1625446245180,4.2147677,34788.0,34787.0,0.4863597]
[1625446245380,7.7903677,34788.0,34787.0,0.4863597]
[1625446245580,7.7903677,34788.0,34787.0,0.48115088]
[1625446245883,7.86200941,34788.0,34787.0,0.48635961]
[1625446246184,9.30198744,34788.0,34787.0,0.48635961]
[1625446246483,5.72638744,34788.0,34787.0,0.48635961]
[1625446247901,5.66738744,34788.0,34787.0,0.48635961]
[1625446248338,5.65474573,34788.0,34787.0,0.48635961]
[1625446252900,5.66738764,34788.0,34787.0,0.48635961]
[1625446253098,10.30118764,34788.0,34787.0,0.48635961]
[1625446253604,10.36018764,34788.0,34787.0,0.48635961]
[1625446254100,11.96110045,34788.0,34787.0,0.48635961]
[1625446254851,7.32730045,34788.0,34787.0,0.48635961]
[1625446257857,12.43270045,34788.0,34787.0,0.48635961]
[1625446258307,7.32730045,34788.0,34787.0,0.48635961]
[1625446258909,7.26830045,34788.0,34787.0,0.48635961]
[1625446259112,7.32730045,34788.0,34787.0,0.48635961]
[1625446262520,7.26830045,34788.0,34787.0,0.48635961]
[1625446263221,7.06760819,34788.0,34787.0,0.48635961]
[1625446263421,7.12660819,34788.0,34787.0,0.48635961]
[1625446263521,7.18560819,34788.0,34787.0,0.48635961]
[1625446263621,11.19191361,34788.0,34787.0,0.48635961]
[1625446264626,11.13291361,34788.0,34787.0,0.48635961]
[1625446265025,11.07391361,34788.0,34787.0,0.48635961]
[1625446266076,11.07391361,34788.0,34787.0,0.00520873]
[1625446266779,11.07391361,34788.0,34786.0,0.2846]
[1625446266978,11.07391361,34788.0,34783.0,0.24057544]